[Event "Open International Liffre 2019"]
[Site "Liffre"]
[Date "2019.10.24"]
[Round "8.2"]
[White "Guilleux, Fabien"]
[Black "Nikolov, Momchil"]
[Result "1/2-1/2"]
[TimeControl "1h30 + 30s/coup + 30 min /40 Coup"]
[WhiteTitle "IM"]
[BlackTitle "GM"]
[WhiteElo "2433"]
[BlackElo "2557"]

1. Nf3 {[%clk 01:22:49]} {[%emt 00:08:10]} Nf6 {[%clk 01:30:50]} {[%emt
00:00:10]} 2. c4 {[%clk 01:23:08]} {[%emt 00:00:12]} c5 {[%clk 01:30:56]}
{[%emt 00:00:24]} 3. Nc3 {[%clk 01:23:18]} {[%emt 00:00:20]} d5 {[%clk
01:31:17]} {[%emt 00:00:08]} 4. cxd5 {[%clk 01:23:34]} {[%emt 00:00:15]} Nxd5
{[%clk 01:31:40]} {[%emt 00:00:06]} 5. d4 {[%clk 01:23:35]} {[%emt 00:00:30]}
e6 {[%clk 01:31:53]} {[%emt 00:00:17]} 6. e4 {[%clk 01:23:45]} {[%emt
00:00:19]} Nxc3 {[%clk 01:32:15]} {[%emt 00:00:09]} 7. bxc3 {[%clk 01:24:07]}
{[%emt 00:00:08]} cxd4 {[%clk 01:32:36]} {[%emt 00:00:09]} 8. cxd4 {[%clk
01:24:23]} {[%emt 00:00:14]} Bb4+ {[%clk 01:32:58]} {[%emt 00:00:07]} 9. Bd2
{[%clk 01:24:41]} {[%emt 00:00:13]} Bxd2+ {[%clk 01:33:20]} {[%emt 00:00:08]}
10. Qxd2 {[%clk 01:25:04]} {[%emt 00:00:07]} O-O {[%clk 01:33:35]} {[%emt
00:00:15]} 11. Bc4 {[%clk 01:24:52]} {[%emt 00:00:42]} Nd7 {[%clk 01:33:53]}
{[%emt 00:00:11]} 12. O-O {[%clk 01:24:58]} {[%emt 00:00:25]} b6 {[%clk
01:34:15]} {[%emt 00:00:07]} 13. Rfe1 {[%clk 01:24:32]} {[%emt 00:00:57]} Bb7
{[%clk 01:34:35]} {[%emt 00:00:09]} 14. Rad1 {[%clk 01:24:42]} {[%emt
00:00:21]} Rc8 {[%clk 01:34:55]} {[%emt 00:00:10]} 15. Bb3 {[%clk 01:25:02]}
{[%emt 00:00:11]} Re8 {[%clk 01:35:05]} {[%emt 00:00:18]} 16. d5 {[%clk
01:23:53]} {[%emt 00:01:40]} exd5 {[%clk 01:35:14]} {[%emt 00:00:21]} 17. exd5
{[%clk 01:24:12]} {[%emt 00:00:12]} Nc5 {[%clk 01:35:21]} {[%emt 00:00:22]} 18.
d6 {[%clk 01:21:38]} {[%emt 00:03:05]} Bxf3 {[%clk 01:35:29]} {[%emt 00:00:21]}
19. gxf3 {[%clk 01:22:00]} {[%emt 00:00:07]} Qd7 {[%clk 01:22:21]} {[%emt
00:13:39]} 20. Bc4 {[%clk 01:16:27]} {[%emt 00:06:04]} Rxe1+ {[%clk 01:11:30]}
{[%emt 00:11:20]} 21. Rxe1 {[%clk 01:10:58]} {[%emt 00:05:59]} Ne6 {[%clk
01:10:09]} {[%emt 00:01:50]} 22. Bxe6 {[%clk 01:06:24]} {[%emt 00:05:05]} fxe6
{[%clk 01:10:30]} {[%emt 00:00:08]} 23. Rd1 {[%clk 01:05:38]} {[%emt 00:01:16]}
Rc5 {[%clk 00:56:45]} {[%emt 00:14:16]} 24. Qf4 {[%clk 00:59:54]} {[%emt
00:06:14]} h6 {[%clk 00:54:11]} {[%emt 00:03:03]} 25. h4 {[%clk 00:56:08]}
{[%emt 00:04:17]} b5 {[%clk 00:50:39]} {[%emt 00:04:00]} 26. Kg2 {[%clk
00:29:37]} {[%emt 00:27:02]} a5 {[%clk 00:45:44]} {[%emt 00:05:25]} 27. a3
{[%clk 00:25:46]} {[%emt 00:04:21]} Rf5 {[%clk 00:26:22]} {[%emt 00:19:51]} 28.
Qe3 {[%clk 00:17:17]} {[%emt 00:09:01]} Kf7 {[%clk 00:24:59]} {[%emt 00:01:52]}
29. Qb6 {[%clk 00:10:38]} {[%emt 00:07:10]} Rd5 {[%clk 00:23:50]} {[%emt
00:01:39]} 30. Rd4 {[%clk 00:10:27]} {[%emt 00:00:41]} Kf6 {[%clk 00:13:53]}
{[%emt 00:10:26]} 31. Rf4+ {[%clk 00:09:22]} {[%emt 00:01:36]} Kg6 {[%clk
00:13:13]} {[%emt 00:01:09]} 32. Rd4 {[%clk 00:07:13]} {[%emt 00:02:40]} Kf6
{[%clk 00:13:21]} {[%emt 00:00:21]} 33. Rf4+ {[%clk 00:07:26]} {[%emt
00:00:17]} Kg6 {[%clk 00:13:27]} {[%emt 00:00:24]} 34. Rd4 {[%clk 00:07:15]}
{[%emt 00:00:41]} Kf6 {[%emt 00:01:37]} 35. f4 {[%emt 00:00:16]} Kf7 {[%emt
00:00:48]} 36. Kf3 {[%emt 00:00:06]} Rxd4 {[%emt 00:00:02]} 37. Qxd4 {[%emt
00:00:03]} Qb7+ {[%emt 00:00:06]} 38. Ke3 {[%emt 00:00:06]} Ke8 {[%emt
00:00:03]} 39. Qe5 {[%emt 00:00:08]} Qb6+ {[%emt 00:00:13]} 40. Ke2 {[%emt
00:00:16]} Kd7 {[%emt 00:00:03]} 41. f5 {[%emt 00:00:14]} Qxd6 {[%emt
00:00:02]} 42. Qxg7+ {[%emt 00:00:03]} Kc6 {[%emt 00:00:10]} 43. Qc3+ {[%emt
00:00:11]} Kd7 {[%emt 00:00:07]} 44. Qg7+ {[%emt 00:00:09]} Kc6 {[%emt
00:00:01]} 45. f6 Qe5+ {[%emt 00:00:30]} 46. Kf1 {[%emt 00:00:01]} b4 {[%emt
00:01:31]} 47. axb4 axb4 48. Qg2+ {[%emt 00:00:05]} Kd6 {[%emt 00:00:05]} 49.
Qf3 Qf5 {[%emt 00:00:07]} 1/2-1/2

[ePGN "0.1;DGT LiveChess/2.1"]

[Event "Open International Liffre 2019"]
[Site "Liffre"]
[Date "2019.10.24"]
[Round "8.3"]
[White "Le Marec, Simon"]
[Black "Enchev, Ivajlo"]
[Result "*"]
[TimeControl "1h30 + 30s/coup + 30 min /40 Coup"]
[BlackTitle "GM"]
[WhiteElo "2228"]
[BlackElo "2488"]

1. d4 {[%clk 01:29:25]} {[%emt 00:01:35]} Nf6 {[%clk 01:30:46]} {[%emt
00:00:14]} 2. c4 {[%clk 01:29:41]} {[%emt 00:00:15]} e6 {[%clk 01:31:02]}
{[%emt 00:00:13]} 3. Nc3 {[%clk 01:30:05]} {[%emt 00:00:07]} Bb4 {[%clk
01:31:14]} {[%emt 00:00:17]} 4. e3 {[%clk 01:30:27]} {[%emt 00:00:07]} O-O
{[%clk 01:31:38]} {[%emt 00:00:08]} 5. Bd3 {[%clk 01:30:54]} {[%emt 00:00:03]}
c5 {[%clk 01:31:48]} {[%emt 00:00:19]} 6. Nge2 {[%clk 01:31:17]} {[%emt
00:00:07]} b6 {[%clk 01:28:10]} {[%emt 00:04:09]} 7. O-O {[%clk 01:30:48]}
{[%emt 00:00:59]} cxd4 {[%clk 01:25:39]} {[%emt 00:03:00]} 8. exd4 {[%clk
01:29:26]} {[%emt 00:01:52]} Bb7 {[%clk 01:25:30]} {[%emt 00:00:39]} 9. a3
{[%clk 01:24:44]} {[%emt 00:05:12]} Bxc3 {[%clk 01:20:05]} {[%emt 00:05:55]} 10.
Nxc3 {[%clk 01:23:52]} {[%emt 00:01:22]} h6 {[%emt 00:04:30]} 11. d5 {[%clk
01:17:13]} {[%emt 00:03:16]} exd5 {[%clk 01:15:08]} {[%emt 00:05:20]} 12. cxd5
{[%clk 01:17:36]} {[%emt 00:00:07]} Na6 {[%clk 01:15:05]} {[%emt 00:00:34]} 13.
Bf4 {[%clk 01:14:17]} {[%emt 00:03:48]} Nc7 {[%clk 01:09:27]} {[%emt 00:06:08]}
14. Bc4 {[%clk 01:12:33]} {[%emt 00:02:14]} Rc8 {[%clk 01:08:36]} {[%emt
00:01:21]} 15. Qd4 {[%clk 01:05:20]} {[%emt 00:07:43]} d6 {[%clk 01:06:23]}
{[%emt 00:02:43]} 16. Rfe1 {[%clk 00:59:27]} {[%emt 00:06:22]} Re8 {[%emt
00:04:12]} 17. Rad1 {[%clk 00:53:33]} {[%emt 00:05:05]} Nh5 {[%clk 01:00:12]}
{[%emt 00:04:19]} 18. Bc1 {[%clk 00:53:53]} {[%emt 00:00:10]} Nf6 {[%clk
00:58:27]} {[%emt 00:02:15]} 19. Bd2 {[%clk 00:50:48]} {[%emt 00:03:35]} Rxe1+
{[%clk 00:45:09]} {[%emt 00:13:48]} 20. Rxe1 {[%clk 00:50:25]} {[%emt
00:00:53]} Qd7 {[%clk 00:35:44]} {[%emt 00:09:54]} 21. Bxh6 {[%clk 00:43:52]}
{[%emt 00:07:04]} Qf5 {[%clk 00:36:06]} {[%emt 00:00:08]} 22. Bd3 {[%clk
00:35:10]} {[%emt 00:09:12]} Qh5 {[%clk 00:33:40]} {[%emt 00:02:56]} 23. Bf4
{[%clk 00:29:35]} {[%emt 00:06:05]} Nfxd5 {[%emt 00:04:56]} 24. Nxd5 {[%clk
00:29:49]} {[%emt 00:00:05]} Bxd5 {[%clk 00:27:45]} {[%emt 00:02:10]} 25. Bxd6
{[%clk 00:28:30]} {[%emt 00:01:49]} Qg5 {[%clk 00:24:55]} {[%emt 00:03:19]} 26.
Be4 {[%clk 00:26:17]} {[%emt 00:02:43]} Re8 {[%clk 00:22:29]} {[%emt 00:02:57]}
27. f4 {[%clk 00:20:40]} {[%emt 00:06:07]} Rxe4 {[%clk 00:14:31]} {[%emt
00:08:29]} 28. Rxe4 {[%clk 00:19:10]} {[%emt 00:01:59]} Qg6 {[%clk 00:13:08]}
{[%emt 00:01:53]} 29. Bxc7 {[%clk 00:18:36]} {[%emt 00:01:04]} Bxe4 {[%clk
00:12:35]} {[%emt 00:01:03]} 30. Qd8+ {[%clk 00:18:38]} {[%emt 00:00:27]} *

[ePGN "0.1;DGT LiveChess/2.1"]

[Event "Open International Liffre 2019"]
[Site "Liffre"]
[Date "2019.10.24"]
[Round "8.4"]
[White "Lassimonne, Jeremy"]
[Black "Sundararajan, Kidambi"]
[Result "0-1"]
[TimeControl "1h30 + 30s/coup + 30 min /40 Coup"]
[BlackTitle "GM"]
[WhiteElo "1614"]
[BlackElo "2422"]

1. e4 {[%clk 01:30:58]} {[%emt 00:00:02]} c5 {[%clk 01:30:48]} {[%emt
00:00:12]} 2. Nf3 {[%clk 01:31:21]} {[%emt 00:00:07]} e6 {[%clk 01:31:10]}
{[%emt 00:00:08]} 3. d4 {[%clk 01:31:40]} {[%emt 00:00:12]} cxd4 {[%clk
01:31:33]} {[%emt 00:00:07]} 4. Nxd4 {[%clk 01:32:02]} {[%emt 00:00:07]} a6
{[%clk 01:31:55]} {[%emt 00:00:08]} 5. a3 {[%clk 01:31:46]} {[%emt 00:00:46]}
Nf6 {[%clk 01:30:25]} {[%emt 00:02:00]} 6. Nc3 {[%clk 01:30:48]} {[%emt
00:01:28]} Qc7 {[%clk 01:27:55]} {[%emt 00:02:59]} 7. Be2 {[%clk 01:28:37]}
{[%emt 00:02:42]} Nc6 {[%clk 01:27:48]} {[%emt 00:00:38]} 8. Nb3 {[%clk
01:24:06]} {[%emt 00:05:01]} b5 {[%clk 01:23:32]} {[%emt 00:04:46]} 9. O-O
{[%clk 01:18:54]} {[%emt 00:05:41]} Be7 {[%clk 01:20:54]} {[%emt 00:03:08]} 10.
Be3 {[%clk 01:17:19]} {[%emt 00:02:05]} O-O {[%clk 01:20:09]} {[%emt 00:01:14]}
11. f4 {[%clk 01:09:09]} {[%emt 00:08:42]} d6 {[%clk 01:20:21]} {[%emt
00:00:18]} 12. Nd4 {[%clk 01:07:19]} {[%emt 00:02:20]} Bb7 {[%clk 01:19:51]}
{[%emt 00:01:00]} 13. Bf3 {[%clk 01:05:57]} {[%emt 00:01:49]} Na5 {[%clk
01:13:40]} {[%emt 00:06:43]} 14. Qe1 {[%clk 00:53:16]} {[%emt 00:13:11]} Nc4
{[%clk 01:12:59]} {[%emt 00:01:11]} 15. Bc1 {[%clk 00:53:36]} {[%emt 00:00:10]}
Qb6 {[%clk 01:09:49]} {[%emt 00:03:39]} 16. Qf2 {[%clk 00:51:11]} {[%emt
00:02:56]} d5 {[%clk 01:05:41]} {[%emt 00:04:38]} 17. e5 {[%clk 00:38:37]}
{[%emt 00:13:04]} Ne4 {[%clk 01:05:00]} {[%emt 00:01:11]} 18. Bxe4 {[%clk
00:38:58]} {[%emt 00:00:09]} dxe4 {[%clk 01:05:11]} {[%emt 00:00:19]} 19. Nce2
{[%clk 00:38:16]} {[%emt 00:01:12]} f6 {[%clk 00:58:49]} {[%emt 00:06:52]} 20.
Nb3 {[%clk 00:31:44]} {[%emt 00:07:02]} Qxf2+ {[%clk 00:55:57]} {[%emt
00:03:21]} 21. Rxf2 {[%clk 00:31:49]} {[%emt 00:00:26]} e3 {[%clk 00:54:50]}
{[%emt 00:01:37]} 22. Rf1 {[%clk 00:32:00]} {[%emt 00:00:18]} fxe5 {[%clk
00:55:10]} {[%emt 00:00:10]} 23. a4 {[%clk 00:30:28]} {[%emt 00:02:03]} b4
{[%clk 00:53:34]} {[%emt 00:02:05]} 24. c3 {[%clk 00:29:27]} {[%emt 00:01:32]}
Be4 {[%clk 00:51:15]} {[%emt 00:02:49]} 25. fxe5 {[%clk 00:25:29]} {[%emt
00:04:27]} Rxf1+ {[%clk 00:50:26]} {[%emt 00:01:19]} 26. Kxf1 {[%clk 00:25:51]}
{[%emt 00:00:09]} Rf8+ {[%clk 00:50:34]} {[%emt 00:00:22]} 27. Ke1 {[%clk
00:25:36]} {[%emt 00:00:45]} Bxg2 {[%clk 00:49:39]} {[%emt 00:01:25]} 28. Ng3
{[%clk 00:23:54]} {[%emt 00:02:11]} h5 {[%clk 00:43:12]} {[%emt 00:06:57]} 29.
Nxh5 {[%clk 00:20:26]} {[%emt 00:03:58]} Rf1+ {[%clk 00:38:53]} {[%emt
00:04:50]} 30. Ke2 {[%clk 00:20:45]} {[%emt 00:00:12]} Rf2+ {[%clk 00:38:45]}
{[%emt 00:00:37]} 31. Ke1 {[%clk 00:20:39]} {[%emt 00:00:36]} Nxe5 {[%clk
00:37:58]} {[%emt 00:01:17]} 32. Nd4 {[%clk 00:19:22]} {[%emt 00:01:47]} Nd3+
{[%clk 00:37:40]} {[%emt 00:00:48]} 33. Kd1 {[%clk 00:19:23]} {[%emt 00:00:30]}
Bf3+ {[%emt 00:02:30]} 0-1

[ePGN "0.1;DGT LiveChess/2.1"]

[Event "Open International Liffre 2019"]
[Site "Liffre"]
[Date "2019.10.25"]
[Round "9.1"]
[White "Sundararajan, Kidambi"]
[Black "Viani Antonio Dcunha"]
[Result "0-1"]
[TimeControl "1h30 + 30s/coup + 30 min /40 Coup"]
[WhiteTitle "GM"]
[BlackTitle "IM"]
[WhiteElo "2422"]
[BlackElo "2380"]

1. d4 {[%clk 01:30:56]} {[%emt 00:00:03]} Nf6 {[%clk 01:30:25]} {[%emt
00:00:36]} 2. c4 {[%clk 01:31:15]} {[%emt 00:00:10]} g6 {[%clk 01:30:47]}
{[%emt 00:00:08]} 3. Nc3 {[%clk 01:31:39]} {[%emt 00:00:06]} Bg7 {[%clk
01:31:09]} {[%emt 00:00:07]} 4. Nf3 {[%clk 01:31:59]} {[%emt 00:00:10]} O-O
{[%clk 01:31:20]} {[%emt 00:00:20]} 5. Bg5 {[%clk 01:32:00]} {[%emt 00:00:29]}
h6 {[%clk 01:29:15]} {[%emt 00:02:36]} 6. Bxf6 {[%clk 01:30:30]} {[%emt
00:01:59]} Bxf6 {[%clk 01:27:24]} {[%emt 00:02:21]} 7. Qd2 {[%clk 01:26:25]}
{[%emt 00:04:35]} Bg7 {[%clk 01:26:10]} {[%emt 00:01:44]} 8. h4 {[%clk
01:25:41]} {[%emt 00:01:14]} d6 {[%clk 01:25:02]} {[%emt 00:01:38]} 9. h5
{[%clk 01:22:43]} {[%emt 00:03:27]} g5 {[%clk 01:23:45]} {[%emt 00:01:47]} 10.
O-O-O {[%clk 01:21:08]} {[%emt 00:02:06]} Nd7 {[%clk 01:18:34]} {[%emt
00:05:41]} 11. e4 {[%clk 01:10:16]} {[%emt 00:11:22]} c5 {[%clk 01:10:25]}
{[%emt 00:08:39]} 12. Be2 {[%clk 01:01:32]} {[%emt 00:09:13]} g4 {[%clk
01:01:32]} {[%emt 00:09:24]} 13. Nh4 {[%clk 00:54:33]} {[%emt 00:07:29]} cxd4
{[%clk 01:01:34]} {[%emt 00:00:28]} 14. Nb5 {[%clk 00:54:34]} {[%emt 00:00:29]}
Nc5 {[%clk 00:49:35]} {[%emt 00:12:29]} 15. Nxd4 {[%clk 00:53:02]} {[%emt
00:02:02]} e5 {[%clk 00:39:22]} {[%emt 00:10:44]} 16. Ndf5 {[%clk 00:51:17]}
{[%emt 00:02:14]} Nxe4 {[%clk 00:37:34]} {[%emt 00:02:19]} 17. Qe3 {[%clk
00:47:41]} {[%emt 00:04:04]} Qg5 {[%clk 00:27:03]} {[%emt 00:11:01]} 18. Qxg5
{[%clk 00:43:41]} {[%emt 00:04:31]} hxg5 {[%clk 00:27:29]} {[%emt 00:00:05]} 19.
Ne7+ {[%clk 00:39:03]} {[%emt 00:05:08]} Kh7 {[%clk 00:27:30]} {[%emt
00:00:28]} 20. Nhg6 {[%clk 00:33:34]} {[%emt 00:05:58]} Nxf2 {[%clk 00:19:02]}
{[%emt 00:08:59]} 21. Rhf1 {[%clk 00:26:46]} {[%emt 00:07:17]} g3 {[%emt
00:10:14]} 22. Nxf8 {[%emt 00:00:05]} Bxf8 {[%emt 00:02:01]} 23. Bd3 {[%emt
00:01:29]} Kh8 {[%emt 00:00:15]} 24. Nf5 {[%clk 00:11:10]} {[%emt 00:04:56]} e4
{[%clk 00:11:35]} {[%emt 00:07:34]} 25. Bxe4 {[%clk 00:10:48]} {[%emt
00:00:52]} Nxe4 {[%emt 00:02:38]} 26. Rde1 {[%emt 00:00:51]} d5 {[%clk
00:12:04]} {[%emt 00:00:19]} 27. cxd5 {[%clk 00:06:52]} {[%emt 00:01:39]} Bxf5
{[%clk 00:12:24]} {[%emt 00:00:10]} 28. Rxf5 {[%emt 00:00:11]} Nd6 {[%emt
00:01:32]} 29. Rf3 {[%emt 00:00:31]} Rc8+ {[%emt 00:00:05]} 30. Kb1 {[%emt
00:01:27]} Rc5 {[%clk 00:12:01]} {[%emt 00:00:04]} 31. Rd1 {[%emt 00:01:07]}
Kg7 {[%clk 00:11:26]} {[%emt 00:00:18]} 32. Rxg3 {[%clk 00:06:37]} {[%emt
00:00:27]} Kh6 {[%clk 00:11:26]} {[%emt 00:00:31]} 33. Rh3 {[%clk 00:05:10]}
{[%emt 00:01:57]} g4 {[%clk 00:10:39]} {[%emt 00:01:17]} 34. Rhh1 {[%clk
00:04:16]} {[%emt 00:01:23]} f5 {[%clk 00:09:17]} {[%emt 00:01:53]} 35. Rhe1
{[%clk 00:04:05]} {[%emt 00:00:41]} Kxh5 {[%clk 00:07:19]} {[%emt 00:02:29]} 36.
Re6 {[%clk 00:04:06]} {[%emt 00:00:28]} Kg5 {[%clk 00:05:18]} {[%emt 00:02:30]}
37. Rh1 {[%clk 00:04:02]} {[%emt 00:00:34]} Ne4 {[%clk 00:04:32]} {[%emt
00:01:17]} 38. Re8 {[%clk 00:03:21]} {[%emt 00:01:11]} Bd6 {[%clk 00:04:35]}
{[%emt 00:00:27]} 39. Rd1 {[%clk 00:02:52]} {[%emt 00:00:58]} Kf4 {[%clk
00:03:43]} {[%emt 00:01:23]} 40. Rd3 {[%clk 00:02:27]} {[%emt 00:00:54]} Rc7
{[%clk 00:01:47]} {[%emt 00:02:27]} 41. Re6 {[%clk 00:01:14]} {[%emt 00:01:43]}
Rh7 {[%clk 00:26:56]} {[%emt 00:05:22]} 42. Rd4 {[%clk 00:27:32]} {[%emt
00:04:11]} Ke3 {[%clk 00:23:35]} {[%emt 00:03:52]} 43. Rd1 {[%clk 00:26:12]}
{[%emt 00:01:48]} Kf2 {[%clk 00:23:14]} {[%emt 00:00:52]} 44. Rd4 {[%clk
00:25:15]} {[%emt 00:01:27]} Kxg2 {[%clk 00:22:47]} {[%emt 00:00:57]} 45. Rdxe4
{[%clk 00:25:39]} {[%emt 00:00:06]} fxe4 {[%clk 00:23:11]} {[%emt 00:00:06]} 46.
Rxd6 {[%clk 00:26:03]} {[%emt 00:00:06]} g3 {[%clk 00:23:33]} {[%emt 00:00:08]}
47. Re6 {[%clk 00:26:00]} {[%emt 00:00:32]} Kh1 {[%clk 00:23:45]} {[%emt
00:00:19]} 48. Rxe4 {[%clk 00:26:16]} {[%emt 00:00:14]} g2 {[%clk 00:24:06]}
{[%emt 00:00:09]} 0-1

[ePGN "0.1;DGT LiveChess/2.1"]